{"text_format":"3","workbook":"xlsx","n_sheets":1,"sheets":["Лист1"],"read":"whole","date_system":"1900"}

{"sheet":"Лист1","index":0,"n_rows":26,"n_cols":19,"rows_kept":26,"merged":[[1,0,1,8],[25,6,25,7],[25,8,25,18]]}
[]
["Расписание занятий в агроклассахСармановского, Азнакаевского, Тукаевского, Заинского районов 2-е полугодие 2024-2025 уч.год"]
[]
["№ п/п","Названия школ","класс ","2025-01-23","2025-01-30","2025-02-06","2025-02-13","2025-02-14","2025-02-20","2025-02-27","2025-03-13","2025-03-21","2025-04-03","2025-04-04","2025-04-10","2025-04-17"]
[null,"7 класс"]
[1,"МБОУ «Сармановская гимназия», с. Сарманово, ул. В.Терешковой, д. 8","7 класс","13.00-14.00 онлайн занятия (Казанский государственный аграрный университет)","13.00-14.00 онлайн урок (Академия ветеринарной медицины)",{"$f":"$D$6","v":"13.00-14.00 онлайн занятия (Казанский государственный аграрный университет)"},"09.00-10.30 Практические выездные занятия преподавателями вузов",null,{"$f":"$K$6","v":"13.00-14.00 онлайн урок (Академия ветеринарной медицины)"},{"$f":"D6","v":"13.00-14.00 онлайн занятия (Казанский государственный аграрный университет)"},"13.00-14.00 онлайн урок (Академия ветеринарной медицины)","Научно -практическая конференция ПК школьников \"Наука и молодежь Татарстана - Агровызов\" в .10.00",{"$f":"G6","v":"09.00-10.30 Практические выездные занятия преподавателями вузов"},null,{"$f":"$D$6","v":"13.00-14.00 онлайн занятия (Казанский государственный аграрный университет)"},{"$f":"$K$6","v":"13.00-14.00 онлайн урок (Академия ветеринарной медицины)"},null,"Даминов Аниса Ильдаровна, +7 927 030-40-16"]
[2,"МБОУ «СОШ №1 г.Азнакаево, ул. Просторная, д. 3","7 класс",{"$f":"$D$6","v":"13.00-14.00 онлайн занятия (Казанский государственный аграрный университет)"},{"$f":"$E$6","v":"13.00-14.00 онлайн урок (Академия ветеринарной медицины)"},{"$f":"$F$6","v":"13.00-14.00 онлайн занятия (Казанский государственный аграрный университет)"},"13.00-14.30 Практические выездные занятия преподавателями вузов",null,{"$f":"$I$6","v":"13.00-14.00 онлайн урок (Академия ветеринарной медицины)"},{"$f":"D6","v":"13.00-14.00 онлайн занятия (Казанский государственный аграрный университет)"},"13.00-14.00 онлайн урок (Академия ветеринарной медицины)",{"$f":"$L$6","v":"Научно -практическая конференция ПК школьников \"Наука и молодежь Татарстана - Агровызов\" в .10.00"},"13.00-14.30 Практические выездные занятия преподавателями вузов",null,{"$f":"O6","v":"13.00-14.00 онлайн занятия (Казанский государственный аграрный университет)"},"13.00-14.00 онлайн урок (Академия ветеринарной медицины)"]
[3,"МБОУ «Савалеевская СОШ» (Заинский район) с. Савалеево, ул. Молодежная, д. 1","7 класс",{"$f":"$D$6","v":"13.00-14.00 онлайн занятия (Казанский государственный аграрный университет)"},{"$f":"$E$6","v":"13.00-14.00 онлайн урок (Академия ветеринарной медицины)"},{"$f":"$F$6","v":"13.00-14.00 онлайн занятия (Казанский государственный аграрный университет)"},null,"08.00-09.15 Практические выездные занятия преподавателями вузов","13.00-14.00 онлайн урок (Академия ветеринарной медицины)","13.00-14.00 онлайн занятия (Казанский государственный аграрный университет)","13.00-14.00 онлайн урок (Академия ветеринарной медицины)",{"$f":"$L$6","v":"Научно -практическая конференция ПК школьников \"Наука и молодежь Татарстана - Агровызов\" в .10.00"},null,{"$f":"H8","v":"08.00-09.15 Практические выездные занятия преподавателями вузов"},"13.00-14.00 онлайн занятия (Казанский государственный аграрный университет)","13.00-14.00 онлайн урок (Академия ветеринарной медицины)"]
[4,"МБОУ «Кадыровская СОШ» ЗМР РТ с.Кадырово, ул. Молодежная, д.4","7 класс",{"$f":"$D$6","v":"13.00-14.00 онлайн занятия (Казанский государственный аграрный университет)"},null,"13.00-14.00 онлайн занятия (Казанский государственный аграрный университет)",null,"11.00-12.30 Практические занятия (аграрный Университет/ветакадемия)","13.00-14.00 онлайн урок (Академия ветеринарной медицины)","13.00-14.00 онлайн занятия (Казанский государственный аграрный университет)","13.00-14.00 онлайн урок (Академия ветеринарной медицины)",null,0,"11.00-12.30 Практические занятия (аграрный Университет/ветакадемия)","13.00-14.00 онлайн занятия (Казанский государственный аграрный университет)","13.00-14.00 онлайн урок (Академия ветеринарной медицины)"]
[null,{"$f":"$B$18","v":"МБОУ «Кадыровская СОШ» ЗМР РТ с.Кадырово, ул. Молодежная, д.4"},null,{"$f":"$D$6","v":"13.00-14.00 онлайн занятия (Казанский государственный аграрный университет)"},{"$f":"$E$6","v":"13.00-14.00 онлайн урок (Академия ветеринарной медицины)"},{"$f":"F24","v":"13.00-14.00 онлайн занятия (Казанский государственный аграрный университет)"},0,"10.00-11.15 Практические выездные занятия преподавателями вузов","13.00-14.00 онлайн урок (Академия ветеринарной медицины)",{"$f":"D6","v":"13.00-14.00 онлайн занятия (Казанский государственный аграрный университет)"},"13.00-14.00 онлайн урок (Академия ветеринарной медицины)",{"$f":"$L$6","v":"Научно -практическая конференция ПК школьников \"Наука и молодежь Татарстана - Агровызов\" в .10.00"},null,"10.00-11.15 Практические выездные занятия преподавателями вузов","13.00-14.00 онлайн занятия (Казанский государственный аграрный университет)","13.00-14.00 онлайн урок (Академия ветеринарной медицины)"]
[5,"МБОУ «Бетькинская СОШ с углубленным изучением отдельных предметов» Тукаевского района РТ,село Бетьки, ул.Центральная д.43","7 класс",{"$f":"$D$6","v":"13.00-14.00 онлайн занятия (Казанский государственный аграрный университет)"},{"$f":"$E$6","v":"13.00-14.00 онлайн урок (Академия ветеринарной медицины)"},"13.00-14.00 онлайн занятия (Казанский государственный аграрный университет)",null,"12.00-13.30 Практические выездные занятия преподавателями вузов","13.00-14.00 онлайн урок (Академия ветеринарной медицины)","13.00-14.00 онлайн занятия (Казанский государственный аграрный университет)","13.00-14.00 онлайн урок (Академия ветеринарной медицины)",{"$f":"$L$6","v":"Научно -практическая конференция ПК школьников \"Наука и молодежь Татарстана - Агровызов\" в .10.00"},null,"12.00-13.30 Практические выездные занятия преподавателями вузов","13.00-14.00 онлайн занятия (Казанский государственный аграрный университет)","13.00-14.00 онлайн урок (Академия ветеринарной медицины)"]
[6,"8 класс",{"$nulls":6},"13.00-14.00 онлайн урок (Академия ветеринарной медицины)"]
[7,{"$f":"$B$6","v":"МБОУ «Сармановская гимназия», с. Сарманово, ул. В.Терешковой, д. 8"},"8 класс",{"$f":"$D$6","v":"13.00-14.00 онлайн занятия (Казанский государственный аграрный университет)"},{"$f":"$E$6","v":"13.00-14.00 онлайн урок (Академия ветеринарной медицины)"},{"$f":"$F$6","v":"13.00-14.00 онлайн занятия (Казанский государственный аграрный университет)"},{"$f":"G6","v":"09.00-10.30 Практические выездные занятия преподавателями вузов"},null,"13.00-14.00 онлайн урок (Академия ветеринарной медицины)",{"$f":"D6","v":"13.00-14.00 онлайн занятия (Казанский государственный аграрный университет)"},"13.00-14.00 онлайн урок (Академия ветеринарной медицины)",{"$f":"$L$6","v":"Научно -практическая конференция ПК школьников \"Наука и молодежь Татарстана - Агровызов\" в .10.00"},"09.00-10.30 Практические выездные занятия преподавателями вузов",null,{"$f":"O6","v":"13.00-14.00 онлайн занятия (Казанский государственный аграрный университет)"},"13.00-14.00 онлайн урок (Академия ветеринарной медицины)",null,"Абрамова Галина Викторовна, +7 919 637-01-83"]
[8,{"$f":"B7","v":"МБОУ «СОШ №1 г.Азнакаево, ул. Просторная, д. 3"},"8 класс",{"$f":"$D$6","v":"13.00-14.00 онлайн занятия (Казанский государственный аграрный университет)"},{"$f":"$E$6","v":"13.00-14.00 онлайн урок (Академия ветеринарной медицины)"},"13.00-14.00 онлайн занятия (Казанский государственный аграрный университет)","13.00-14.30 Практические выездные занятия преподавателями вузов",null,"13.00-14.00 онлайн урок (Академия ветеринарной медицины)","13.00-14.00 онлайн занятия (Казанский государственный аграрный университет)","13.00-14.00 онлайн урок (Академия ветеринарной медицины)",{"$f":"$L$6","v":"Научно -практическая конференция ПК школьников \"Наука и молодежь Татарстана - Агровызов\" в .10.00"},"13.00-14.30 Практические выездные занятия преподавателями вузов",null,"13.00-14.00 онлайн занятия (Казанский государственный аграрный университет)","13.00-14.00 онлайн урок (Академия ветеринарной медицины)"]
[9,{"$f":"B8","v":"МБОУ «Савалеевская СОШ» (Заинский район) с. Савалеево, ул. Молодежная, д. 1"},"8 класс",{"$f":"$D$6","v":"13.00-14.00 онлайн занятия (Казанский государственный аграрный университет)"},null,"13.00-14.00 онлайн занятия (Казанский государственный аграрный университет)",null,"08.00-10.30 Практические занятия (Университет)","13.00-14.00 онлайн урок (Академия ветеринарной медицины)","13.00-14.00 онлайн занятия (Казанский государственный аграрный университет)","13.00-14.00 онлайн урок (Академия ветеринарной медицины)",null,0,"08.00-10.30 Практические занятия (Университет)","13.00-14.00 онлайн занятия (Казанский государственный аграрный университет)","13.00-14.00 онлайн урок (Академия ветеринарной медицины)",null,null,{"$f":"#REF!","v":{"$error":"#REF!"}}]
[10,{"$f":"B9","v":"МБОУ «Кадыровская СОШ» ЗМР РТ с.Кадырово, ул. Молодежная, д.4"},"8 класс","13.00-14.00 онлайн занятия (Казанский государственный аграрный университет)",null,"13.00-14.00 онлайн занятия (Казанский государственный аграрный университет)",null,"11.00-12.30 Практические занятия (Университет)","13.00-14.00 онлайн урок (Академия ветеринарной медицины)","13.00-14.00 онлайн занятия (Казанский государственный аграрный университет)",0,null,0,"11.00-12.30 Практические занятия (Университет)","13.00-14.00 онлайн занятия (Казанский государственный аграрный университет)","13.00-14.00 онлайн урок (Академия ветеринарной медицины)",null,null,{"$f":"#REF!","v":{"$error":"#REF!"}}]
[null,{"$f":"B8","v":"МБОУ «Савалеевская СОШ» (Заинский район) с. Савалеево, ул. Молодежная, д. 1"},null,{"$f":"$D$6","v":"13.00-14.00 онлайн занятия (Казанский государственный аграрный университет)"},{"$f":"$E$6","v":"13.00-14.00 онлайн урок (Академия ветеринарной медицины)"},{"$f":"F14","v":"13.00-14.00 онлайн занятия (Казанский государственный аграрный университет)"},null,{"$f":"H8","v":"08.00-09.15 Практические выездные занятия преподавателями вузов"},"13.00-14.00 онлайн урок (Академия ветеринарной медицины)","13.00-14.00 онлайн занятия (Казанский государственный аграрный университет)","13.00-14.00 онлайн урок (Академия ветеринарной медицины)",{"$f":"$L$6","v":"Научно -практическая конференция ПК школьников \"Наука и молодежь Татарстана - Агровызов\" в .10.00"},null,"08.00-09.15 Практические выездные занятия преподавателями вузов","13.00-14.00 онлайн занятия (Казанский государственный аграрный университет)","13.00-14.00 онлайн урок (Академия ветеринарной медицины)"]
[null,{"$f":"B9","v":"МБОУ «Кадыровская СОШ» ЗМР РТ с.Кадырово, ул. Молодежная, д.4"},null,{"$f":"$D$6","v":"13.00-14.00 онлайн занятия (Казанский государственный аграрный университет)"},{"$f":"$E$6","v":"13.00-14.00 онлайн урок (Академия ветеринарной медицины)"},{"$f":"F14","v":"13.00-14.00 онлайн занятия (Казанский государственный аграрный университет)"},null,{"$f":"H10","v":"10.00-11.15 Практические выездные занятия преподавателями вузов"},"13.00-14.00 онлайн урок (Академия ветеринарной медицины)","13.00-14.00 онлайн занятия (Казанский государственный аграрный университет)","13.00-14.00 онлайн урок (Академия ветеринарной медицины)",{"$f":"$L$6","v":"Научно -практическая конференция ПК школьников \"Наука и молодежь Татарстана - Агровызов\" в .10.00"},null,"10.00-11.15 Практические выездные занятия преподавателями вузов","13.00-14.00 онлайн занятия (Казанский государственный аграрный университет)","13.00-14.00 онлайн урок (Академия ветеринарной медицины)"]
[11,{"$f":"B11","v":"МБОУ «Бетькинская СОШ с углубленным изучением отдельных предметов» Тукаевского района РТ,село Бетьки, ул.Центральная д.43"},"8 класс",{"$f":"$D$6","v":"13.00-14.00 онлайн занятия (Казанский государственный аграрный университет)"},{"$f":"$E$6","v":"13.00-14.00 онлайн урок (Академия ветеринарной медицины)"},"13.00-14.00 онлайн занятия (Казанский государственный аграрный университет)",null,"12.00-13.30 Практические выездные занятия преподавателями вузов","13.00-14.00 онлайн урок (Академия ветеринарной медицины)",{"$f":"D6","v":"13.00-14.00 онлайн занятия (Казанский государственный аграрный университет)"},"13.00-14.00 онлайн урок (Академия ветеринарной медицины)",{"$f":"$L$6","v":"Научно -практическая конференция ПК школьников \"Наука и молодежь Татарстана - Агровызов\" в .10.00"},null,"12.00-13.30 Практические выездные занятия преподавателями вузов",{"$f":"O6","v":"13.00-14.00 онлайн занятия (Казанский государственный аграрный университет)"},"13.00-14.00 онлайн урок (Академия ветеринарной медицины)"]
[12,"9 класс"]
[13,{"$f":"B13","v":"МБОУ «Сармановская гимназия», с. Сарманово, ул. В.Терешковой, д. 8"},null,{"$f":"$D$6","v":"13.00-14.00 онлайн занятия (Казанский государственный аграрный университет)"},{"$f":"$E$6","v":"13.00-14.00 онлайн урок (Академия ветеринарной медицины)"},"13.00-14.00 онлайн занятия (Казанский государственный аграрный университет)",{"$f":"G6","v":"09.00-10.30 Практические выездные занятия преподавателями вузов"},null,"13.00-14.00 онлайн урок (Академия ветеринарной медицины)",{"$f":"D6","v":"13.00-14.00 онлайн занятия (Казанский государственный аграрный университет)"},"13.00-14.00 онлайн урок (Академия ветеринарной медицины)",{"$f":"$L$6","v":"Научно -практическая конференция ПК школьников \"Наука и молодежь Татарстана - Агровызов\" в .10.00"},"09.00-10.30 Практические выездные занятия преподавателями вузов",null,{"$f":"O6","v":"13.00-14.00 онлайн занятия (Казанский государственный аграрный университет)"},"13.00-14.00 онлайн урок (Академия ветеринарной медицины)",null,"Сафиуллин Нияз Азатович, +7 917 870-00-85"]
[14,{"$f":"B14","v":"МБОУ «СОШ №1 г.Азнакаево, ул. Просторная, д. 3"},null,"13.00-14.00 онлайн занятия (Казанский государственный аграрный университет)",{"$f":"$E$6","v":"13.00-14.00 онлайн урок (Академия ветеринарной медицины)"},"13.00-14.00 онлайн занятия (Казанский государственный аграрный университет)","13.00-14.30 Практические выездные занятия преподавателями вузов",null,"13.00-14.00 онлайн урок (Академия ветеринарной медицины)","13.00-14.00 онлайн занятия (Казанский государственный аграрный университет)","13.00-14.00 онлайн урок (Академия ветеринарной медицины)",{"$f":"$L$6","v":"Научно -практическая конференция ПК школьников \"Наука и молодежь Татарстана - Агровызов\" в .10.00"},"13.00-14.30 Практические выездные занятия преподавателями вузов",null,"13.00-14.00 онлайн занятия (Казанский государственный аграрный университет)","13.00-14.00 онлайн урок (Академия ветеринарной медицины)"]
[15,{"$f":"B15","v":"МБОУ «Савалеевская СОШ» (Заинский район) с. Савалеево, ул. Молодежная, д. 1"},null,"13.00-14.00 онлайн занятия (Казанский государственный аграрный университет)",{"$f":"$E$6","v":"13.00-14.00 онлайн урок (Академия ветеринарной медицины)"},"13.00-14.00 онлайн занятия (Казанский государственный аграрный университет)",null,{"$f":"H17","v":"08.00-09.15 Практические выездные занятия преподавателями вузов"},"13.00-14.00 онлайн урок (Академия ветеринарной медицины)","13.00-14.00 онлайн занятия (Казанский государственный аграрный университет)","13.00-14.00 онлайн урок (Академия ветеринарной медицины)",{"$f":"$L$6","v":"Научно -практическая конференция ПК школьников \"Наука и молодежь Татарстана - Агровызов\" в .10.00"},null,"08.00-09.15 Практические выездные занятия преподавателями вузов","13.00-14.00 онлайн занятия (Казанский государственный аграрный университет)","13.00-14.00 онлайн урок (Академия ветеринарной медицины)"]
[16,{"$f":"B16","v":"МБОУ «Кадыровская СОШ» ЗМР РТ с.Кадырово, ул. Молодежная, д.4"},null,"13.00-14.00 онлайн занятия (Казанский государственный аграрный университет)",{"$f":"$E$6","v":"13.00-14.00 онлайн урок (Академия ветеринарной медицины)"},"13.00-14.00 онлайн занятия (Казанский государственный аграрный университет)",null,{"$f":"H10","v":"10.00-11.15 Практические выездные занятия преподавателями вузов"},"13.00-14.00 онлайн урок (Академия ветеринарной медицины)",{"$f":"D6","v":"13.00-14.00 онлайн занятия (Казанский государственный аграрный университет)"},"13.00-14.00 онлайн урок (Академия ветеринарной медицины)",{"$f":"$L$6","v":"Научно -практическая конференция ПК школьников \"Наука и молодежь Татарстана - Агровызов\" в .10.00"},null,"10.00-11.15 Практические выездные занятия преподавателями вузов","13.00-14.00 онлайн занятия (Казанский государственный аграрный университет)","13.00-14.00 онлайн урок (Академия ветеринарной медицины)"]
[17,{"$f":"B19","v":"МБОУ «Бетькинская СОШ с углубленным изучением отдельных предметов» Тукаевского района РТ,село Бетьки, ул.Центральная д.43"},null,"13.00-14.00 онлайн занятия (Казанский государственный аграрный университет)",{"$f":"$E$6","v":"13.00-14.00 онлайн урок (Академия ветеринарной медицины)"},"13.00-14.00 онлайн занятия (Казанский государственный аграрный университет)",null,"12.00-13.30 Практические выездные занятия преподавателями вузов","13.00-14.00 онлайн урок (Академия ветеринарной медицины)","13.00-14.00 онлайн занятия (Казанский государственный аграрный университет)","13.00-14.00 онлайн урок (Академия ветеринарной медицины)",{"$f":"$L$6","v":"Научно -практическая конференция ПК школьников \"Наука и молодежь Татарстана - Агровызов\" в .10.00"},null,"12.00-13.30 Практические выездные занятия преподавателями вузов","13.00-14.00 онлайн занятия (Казанский государственный аграрный университет)","13.00-14.00 онлайн урок (Академия ветеринарной медицины)"]
[17]